bitfinex/quotes_SOLUSD_20250830
["timestamp","ask_amount","ask_price","bid_price","bid_amount"]
[1756580880772,6.2353436,201.56,201.54,0.74]
[1756580880970,0.06,201.56,201.54,0.74]
[1756580881180,26.0,201.55,201.54,0.74]
[1756580883095,0.06,201.56,201.54,5.40214546]
[1756580883389,0.06,201.56,201.55,4.66214546]
[1756580883574,0.06,201.56,201.55,5.36214546]
[1756580885469,0.06,201.56,201.55,0.7]
[1756580888690,0.06,201.56,201.55,5.36214546]
[1756580889086,0.06,201.56,201.55,10.32369346]
[1756580889282,0.06,201.56,201.55,23.91928747]
[1756580891395,0.06,201.56,201.55,18.95773947]
[1756580893578,0.06,201.56,201.55,0.7]
[1756580893987,0.06,201.56,201.55,5.36214546]
[1756580894190,0.06,201.57,201.55,10.32369346]
[1756580894387,0.06,201.57,201.56,5.36214546]
[1756580895588,0.06,201.57,201.56,23.91904131]
[1756580895987,0.06,201.57,201.56,14.29559401]
[1756580897705,0.06,201.57,201.56,0.7]
[1756580900305,0.06,201.57,201.56,5.36214546]
[1756580901493,0.06,201.57,201.56,10.3234473]
[1756580902690,0.06,201.57,201.56,10.3534473]
[1756580906416,0.06,201.57,201.56,23.94904131]
[1756580909203,0.06,201.57,201.56,25.93775531]
[1756580910695,0.06,201.57,201.56,26.43388549]
[1756580911790,0.06,201.57,201.56,64.07775531]
[1756580915419,0.06,201.57,201.56,62.39636521]
[1756580920341,0.06,201.57,201.56,24.25636521]
[1756580920517,0.06,201.57,201.56,59.39560985]
[1756580920834,0.06,201.57,201.56,62.37636521]
[1756580922533,0.06,201.57,201.56,62.87249539]
[1756580922876,0.06,201.57,201.56,62.37636521]
[1756580924719,0.06,201.57,201.56,61.67636521]
[1756580925033,0.06,201.57,201.56,56.71506337]
[1756580925931,0.06,201.57,201.56,54.72634937]
[1756580927928,0.06,201.57,201.56,59.68765121]
[1756580928104,0.06,201.57,201.56,60.40765121]
[1756580928306,0.06,201.57,201.56,62.39636521]
[1756580928535,0.06,201.57,201.56,24.27636521]
[1756580928736,0.06,201.57,201.56,62.39636521]
[1756580929237,0.06,201.57,201.56,141.89636521]
[1756580929413,0.06,201.57,201.56,143.57268893]
[1756580937316,0.06,201.57,201.56,104.73268893]
[1756580937522,0.06,201.57,201.56,142.85268893]
[1756580937723,0.06,201.57,201.56,135.90267309]
[1756580938331,0.06,201.57,201.56,140.86397493]
[1756580939041,0.06,201.57,201.56,61.36397493]
[1756580939340,0.06,201.57,201.56,56.40267309]
[1756580940644,0.66,201.57,201.56,0.03]
[1756580940941,31.31707908,201.57,201.56,0.03]
[1756580941138,31.31707908,201.57,201.56,38.15]
[1756580941529,36.27813479,201.57,201.56,38.15]
[1756580941728,31.31707908,201.57,201.56,38.15]
[1756580942935,36.27813479,201.57,201.56,38.15]
[1756580945253,36.27813479,201.57,201.56,0.03]
[1756580945940,31.31707908,201.57,201.56,0.03]
[1756580953436,29.64291943,201.57,201.56,0.03]
[1756580955343,34.60397514,201.57,201.56,0.03]
[1756580958961,36.59357914,201.57,201.56,0.03]
[1756580967166,36.59357914,201.57,201.54,0.03]
[1756580967167,42.68857145,201.57,201.54,0.03]
[1756580967366,7.15546765,201.55,201.54,0.03]
[1756580967543,45.27546765,201.55,201.54,0.03]
[1756580967747,47.86556665,201.55,201.54,0.03]
[1756580967963,43.69301843,201.55,201.54,0.03]
[1756580968178,9.74556665,201.55,201.54,0.03]
[1756580968347,43.69301843,201.55,201.54,0.03]
[1756580968754,5.57301843,201.55,201.54,0.03]
[1756580969068,43.69301843,201.55,201.54,0.03]
[1756580969278,52.82711465,201.55,201.54,0.03]
[1756580970252,52.82711465,201.55,201.53,0.03]
[1756580970454,2.98291943,201.54,201.53,0.03]
[1756580970958,5.57301943,201.54,201.53,0.03]
[1756580971768,43.71301943,201.54,201.53,0.03]
[1756580972370,52.59010676,201.54,201.53,0.03]
[1756580974375,66.18570077,201.54,201.53,1e-08]
[1756580974577,6.09499231,201.53,201.51,0.03]
[1756580974778,41.12291943,201.52,201.51,0.03]
[1756580975382,43.71321743,201.52,201.51,0.03]
[1756580976268,55.64489515,201.52,201.5,0.03]
[1756580976469,19.87713002,201.51,201.49,0.03]
[1756580976778,53.07459715,201.5,201.49,0.03]
[1756580976962,55.66519215,201.5,201.49,0.03]
[1756580977362,50.08469384,201.5,201.49,0.03]
[1756580978275,50.08469384,201.5,201.46,0.03]
[1756580978475,9.63007488,201.49,201.46,0.03]
[1756580978675,9.63007488,201.49,201.48,1e-08]
[1756580978859,14.39946535,201.49,201.46,1e-08]
[1756580979062,4.66704942,201.47,201.46,1e-08]
[1756580979585,5.26704942,201.47,201.46,1e-08]
[1756580979983,12.22155856,201.47,201.46,1e-08]
[1756580980963,32.95450914,201.47,201.46,1e-08]
[1756580981285,49.80155856,201.47,201.46,1e-08]
[1756580981487,50.40155856,201.47,201.46,1e-08]
[1756580981783,49.80155856,201.47,201.46,1e-08]
[1756580982587,50.40155856,201.47,201.46,1e-08]
[1756580982982,49.80155856,201.47,201.46,1e-08]
[1756580984476,11.62155856,201.47,201.46,1e-08]
[1756580984690,49.80155856,201.47,201.46,1e-08]
[1756580986571,32.95450914,201.47,201.46,1e-08]
[1756580986772,49.80155856,201.47,201.46,1e-08]
[1756580989695,11.62155856,201.47,201.46,1e-08]
[1756580989881,49.78155856,201.47,201.46,1e-08]
[1756580991973,49.78155856,201.47,201.46,0.71000001]
[1756580993394,49.78155856,201.47,201.46,1e-08]
[1756580993580,49.78155856,201.47,201.46,0.71000001]
[1756580994571,49.78155856,201.47,201.46,1e-08]
[1756580994772,49.78155856,201.47,201.46,0.71000001]
[1756580995391,45.11450914,201.47,201.46,0.71000001]
[1756580995599,49.78155856,201.47,201.46,0.71000001]
[1756580995967,45.11450914,201.47,201.46,0.71000001]
[1756580996175,49.78155856,201.47,201.46,0.71000001]
[1756580996882,11.62155856,201.47,201.46,0.71000001]
[1756580999372,35.94087255,201.47,201.46,0.71000001]
[1756580999575,9.94087255,201.47,201.46,0.71000001]
[1756581000672,1.990991,201.47,201.46,0.71000001]
[1756581000884,2.98636341,201.48,201.46,0.71000001]
[1756581001087,6.00272641,201.48,201.46,0.71000001]
[1756581001286,3.016363,201.48,201.46,0.71000001]
[1756581001490,2.98636341,201.49,201.46,0.71000001]
[1756581001690,26.0,201.47,201.46,0.71000001]
[1756581001892,7.94953806,201.49,201.46,0.71000001]
[1756581002086,26.0,201.47,201.46,0.71000001]
[1756581002900,28.98636341,201.47,201.46,1e-08]
[1756581003094,28.98636341,201.47,201.46,0.72000001]
[1756581003290,32.00272641,201.47,201.46,0.72000001]
[1756581004289,37.02624455,201.47,201.46,0.72000001]
[1756581004695,34.00988155,201.47,201.46,0.72000001]
[1756581005191,26.06,201.47,201.46,0.72000001]
[1756581006901,31.02351814,201.47,201.46,0.72000001]
[1756581007085,34.00988155,201.47,201.46,0.72000001]
[1756581007593,31.02351814,201.47,201.46,0.72000001]
[1756581007905,26.06,201.47,201.46,0.72000001]
[1756581008099,29.04636341,201.47,201.46,0.72000001]
[1756581008898,34.00988155,201.47,201.46,0.72000001]
[1756581009395,34.00988155,201.47,201.46,1e-08]
[1756581009902,34.00988155,201.47,201.46,0.72000001]
[1756581011512,34.00988155,201.47,201.46,1e-08]
[1756581012003,36.00047655,201.47,201.46,1e-08]
[1756581013796,36.60047655,201.47,201.46,1e-08]
[1756581014185,36.00047655,201.47,201.46,1e-08]
[1756581020127,36.60047655,201.47,201.46,1e-08]
[1756581020698,36.00047655,201.47,201.46,1e-08]
[1756581021302,36.60047655,201.47,201.46,1e-08]
[1756581021602,36.00047655,201.47,201.46,1e-08]
[1756581025406,33.01411314,201.47,201.46,0.72000001]
[1756581025606,36.00047655,201.47,201.46,0.72000001]
[1756581025807,34.00988155,201.47,201.46,0.72000001]
[1756581027351,34.00988155,201.47,201.46,1e-08]
[1756581027840,36.00057555,201.47,201.46,1e-08]
[1756581037343,36.60057555,201.47,201.46,1e-08]
[1756581037532,49.0093709,201.47,201.43,0.03]
[1756581037736,33.17473188,201.44,201.43,0.03]
[1756581037923,71.31473188,201.44,201.43,0.03]
[1756581038240,73.30582188,201.44,201.43,0.03]
[1756581038626,78.27007922,201.44,201.43,0.03]
[1756581039033,74.68171075,201.44,201.43,0.03]
[1756581040142,74.08171075,201.44,201.43,0.03]
[1756581043039,74.08171075,201.44,201.41,0.03]
[1756581043243,2.98636341,201.42,201.41,0.03]
[1756581043541,41.14636341,201.42,201.41,0.03]
[1756581043726,43.13765141,201.42,201.41,0.03]
[1756581044332,48.70240168,201.42,201.41,0.03]
[1756581045328,48.10240168,201.42,201.41,0.03]
[1756581046120,60.64785532,201.42,201.4,0.03]
[1756581046320,14.93181705,201.41,201.4,0.03]
[1756581047128,14.93181705,201.41,201.39,0.2]
[1756581047422,60.90252057,201.4,201.39,1e-08]
[1756581047638,14.04659901,201.4,201.39,1e-08]
[1756581047841,4.96524329,201.4,201.39,1e-08]
[1756581048038,12.13212763,201.4,201.39,1e-08]
[1756581048240,4.18052093,201.4,201.39,0.71000001]
[1756581048432,10.15324734,201.4,201.39,0.71000001]
[1756581048636,4.18052093,201.41,201.39,0.71000001]
[1756581048830,5.97272641,201.41,201.39,0.71000001]
[1756581049034,10.93773843,201.41,201.39,0.71000001]
[1756581051141,2.98636341,201.4,201.39,0.71000001]
[1756581051339,4.66828118,201.4,201.39,1e-08]
[1756581051534,4.66828118,201.4,201.39,0.71000001]
[1756581052147,12.6196562,201.41,201.39,0.71000001]
[1756581052850,26.0,201.4,201.39,0.71000001]
[1756581053050,7.65464418,201.41,201.39,0.71000001]
[1756581053434,26.0,201.4,201.39,0.71000001]
[1756581056556,9.63331831,201.41,201.39,0.71000001]
[1756581056855,26.0,201.4,201.39,0.71000001]
[1756581058351,30.66828118,201.4,201.39,0.71000001]
[1756581060458,35.63352447,201.4,201.39,0.71000001]
[1756581060757,26.0,201.4,201.39,0.71000001]
[1756581065373,30.96524329,201.4,201.39,0.71000001]
[1756581065544,35.63352447,201.4,201.39,0.71000001]
[1756581066558,30.96524329,201.4,201.39,0.71000001]
[1756581066880,30.66828118,201.4,201.39,0.71000001]
[1756581067174,9.63332033,201.41,201.39,0.71000001]
[1756581067537,26.0,201.4,201.39,0.71000001]
[1756581067738,9.63332033,201.41,201.39,0.71000001]
[1756581067972,4.66828118,201.4,201.39,1e-08]
[1756581068346,31.26828118,201.4,201.39,1e-08]
[1756581068537,36.23352447,201.4,201.39,1e-08]
[1756581068762,35.63352447,201.4,201.39,1e-08]
[1756581069784,36.23352447,201.4,201.39,1e-08]
[1756581070077,35.63352447,201.4,201.39,1e-08]
[1756581073255,49.70375791,201.4,201.39,1e-08]
[1756581073582,60.72301584,201.4,201.39,1e-08]
[1756581073782,48.7659866,201.4,201.39,1e-08]
[1756581076054,4.24282372,201.4,201.39,0.71000001]
[1756581076270,26.06,201.4,201.39,0.71000001]
[1756581080904,0.06,201.4,201.39,0.71000001]
[1756581081062,0.06,201.4,201.39,5.37737454]
[1756581081692,0.06,201.4,201.39,0.71000001]
[1756581081863,0.06,201.4,201.39,5.37737454]
[1756581082060,0.06,201.42,201.39,23.93845839]
[1756581082266,0.06,201.42,201.4,0.71]
[1756581082472,0.06,201.42,201.41,4.66737453]
[1756581082871,0.06,201.42,201.41,5.37737453]
[1756581083969,0.06,201.42,201.41,0.71]
[1756581085573,0.06,201.42,201.41,5.37737453]
[1756581086174,0.06,201.42,201.41,0.71]
[1756581088403,0.06,201.42,201.39,1e-08]
[1756581088608,0.06,201.42,201.41,0.71]
[1756581089506,0.06,201.42,201.41,5.37737453]
[1756581090813,0.06,201.42,201.41,23.93796531]
[1756581091279,0.06,201.42,201.41,25.92806431]
[1756581093270,0.06,201.42,201.41,16.29569301]
[1756581093475,0.06,201.42,201.41,0.71]
[1756581093683,0.06,201.42,201.41,39.03]
[1756581095504,0.06,201.42,201.41,39.39]
[1756581096206,0.06,201.42,201.41,39.37]
[1756581098181,0.06,201.42,201.41,0.71]
[1756581099298,0.06,201.42,201.41,18.97296854]
[1756581099600,0.06,201.42,201.41,23.64034254]
[1756581100507,0.06,201.42,201.41,28.60533931]
[1756581100883,0.06,201.43,201.42,13.59559401]
[1756581101082,0.06,201.43,201.42,18.97296854]
[1756581102501,0.06,201.45,201.44,26.0]
[1756581102687,0.06,201.45,201.44,83.45939427]
[1756581102887,0.06,201.45,201.44,89.13365161]
[1756581103798,0.06,201.45,201.44,91.12315761]
[1756581105108,0.06,201.5,201.45,13.59559401]
[1756581105406,0.06,201.5,201.46,57.41934499]
[1756581105589,0.06,201.5,201.46,58.12934499]
[1756581105991,0.06,201.5,201.46,137.62934499]
[1756581106187,0.06,201.5,201.46,100.46227554]
[1756581106400,0.06,201.5,201.46,139.12227554]
[1756581107495,0.06,201.48,201.46,105.42604005]
[1756581107698,0.06,201.48,201.46,144.06604005]
[1756581111215,0.06,201.48,201.46,144.08604005]
[1756581111595,0.06,201.48,201.46,144.06604005]
[1756581115415,0.06,201.48,201.46,144.04604005]
[1756581116818,0.06,201.48,201.46,144.00604005]
[1756581117200,0.06,201.48,201.46,105.42604005]
[1756581117401,0.06,201.48,201.46,144.00604005]
[1756581118204,0.06,201.48,201.46,105.42604005]
[1756581118406,0.06,201.48,201.46,100.04866552]
[1756581118603,0.06,201.48,201.46,104.71604005]
[1756581118804,0.06,201.48,201.46,143.29604005]
[1756581120123,0.06,201.48,201.46,100.04866552]
[1756581120634,0.06,201.48,201.46,138.62866552]
[1756581122922,0.06,201.48,201.46,59.12866552]
[1756581123332,0.06,201.48,201.46,59.82866552]
[1756581124124,0.06,201.48,201.46,64.9924165]
[1756581128014,0.06,201.5,201.49,39.59559401]
[1756581128220,0.06,201.5,201.49,162.77927108]
[1756581128416,0.06,201.5,201.49,162.98296854]
[1756581128725,0.06,201.52,201.51,18.55812688]
[1756581129032,0.06,201.52,201.51,62.24175469]
[1756581129230,0.06,201.52,201.51,64.93066669]
[1756581129908,0.06,201.52,201.51,144.43066669]
[1756581130231,0.06,201.52,201.51,143.93441341]
[1756581132035,0.06,201.52,201.51,138.54703888]
[1756581132811,0.06,201.52,201.51,143.21441341]
[1756581135112,0.06,201.52,201.51,143.17441341]
[1756581136638,0.06,201.52,201.51,138.50703888]
[1756581137940,0.06,201.52,201.51,100.04703888]
[1756581138127,0.06,201.52,201.51,138.48703888]
[1756581138740,0.06,201.52,201.51,143.15441341]
[1756581139637,0.06,201.52,201.51,143.85441341]
[1756581140029,0.06,201.55,201.51,156.2607456]
[1756581140226,0.06,201.55,201.54,4.66737453]
[1756581140539,0.06,201.55,201.54,43.08737453]
[1756581140736,0.06,201.55,201.54,45.77618753]
[1756581141333,0.06,201.55,201.54,143.83357572]
[1756581145843,0.06,201.55,201.54,105.41357572]
[1756581146040,0.06,201.55,201.54,104.71357572]
[1756581146244,0.06,201.55,201.54,100.04620119]
[1756581146447,0.06,201.55,201.54,138.42620119]
[1756581147523,0.06,201.55,201.54,100.04620119]
[1756581147833,0.72,201.55,201.54,131.47559401]
[1756581148846,0.72,201.55,201.54,93.09559401]
[1756581149045,0.72,201.55,201.54,131.45559401]
[1756581150830,0.72,201.55,201.54,93.09559401]
[1756581151031,0.72,201.55,201.54,131.45559401]
[1756581152135,0.06,201.55,201.54,131.45559401]
[1756581152657,0.71,201.55,201.54,51.95559401]
[1756581153361,0.71,201.55,201.54,13.59559401]
[1756581153657,5.37737453,201.55,201.54,51.93559401]
[1756581155765,0.06,201.55,201.54,51.93559401]
[1756581156060,0.06,201.55,201.54,13.59559401]
[1756581156547,0.06,201.55,201.54,51.91559401]
[1756581157262,0.06,201.55,201.54,56.87738819]
[1756581162392,4.72737453,201.55,201.53,1.98901]
[1756581162549,4.72737453,201.55,201.54,38.28]
[1756581163070,5.37737453,201.55,201.54,38.28]
[1756581163458,5.37737453,201.55,201.52,0.03]
[1756581163674,4.66737453,201.53,201.52,0.03]
[1756581163874,4.66737453,201.53,201.52,38.31]
[1756581168548,4.66737453,201.53,201.52,0.03]
[1756581168762,4.66737453,201.53,201.52,38.29]
[1756581171175,4.66737453,201.53,201.52,0.03]
[1756581171376,4.66737453,201.53,201.52,38.29]
[1756581171766,0.06,201.55,201.53,13.59559401]
[1756581171974,0.06,201.55,201.54,38.26]
[1756581172175,0.06,201.55,201.54,38.97]
[1756581172491,0.06,201.55,201.54,43.93179418]
[1756581173564,0.06,201.55,201.54,57.52738819]
[1756581173771,0.06,201.55,201.54,66.92213772]
[1756581174188,0.06,201.55,201.54,62.25476319]
[1756581178288,0.06,201.55,201.54,66.92213772]
[1756581178672,0.06,201.55,201.54,67.41831713]
[1756581178882,0.06,201.55,201.54,146.91831713]
[1756581179088,0.06,201.55,201.54,146.42213772]
[1756581181772,0.06,201.55,201.54,172.42213772]
[1756581181969,0.06,201.55,201.54,97.82296901]
[1756581182186,0.06,201.55,201.54,140.98476319]
[1756581182589,0.06,201.55,201.54,141.70476319]
[1756581183379,0.06,201.55,201.54,140.98476319]
[1756581184497,5.38737453,201.55,201.54,4.727375]
[1756581184686,5.38737453,201.55,201.52,0.03]
[1756581184897,4.66737453,201.53,201.52,0.03]
[1756581185098,4.66737453,201.53,201.52,29.53]
[1756581185295,5.32737453,201.53,201.52,29.53]
[1756581185501,10.28941492,201.53,201.52,0.03]
[1756581185686,5.32737453,201.53,201.52,38.23]
[1756581188800,10.28941492,201.53,201.52,38.23]
[1756581189396,10.28941492,201.53,201.52,0.03]
[1756581202616,9.62941492,201.53,201.52,0.03]
[1756581203226,10.28941492,201.53,201.52,0.03]
[1756581204527,14.37098056,201.53,201.52,0.03]
[1756581204726,19.03835509,201.53,201.52,0.03]
[1756581205630,35.33474906,201.51,201.5,0.03]
[1756581206004,35.99474906,201.51,201.5,0.03]
[1756581206539,37.98494706,201.51,201.5,0.03]
[1756581206739,37.98494706,201.51,201.49,0.03]
[1756581207043,35.33474906,201.5,201.49,0.03]
[1756581207327,37.32504606,201.5,201.49,0.03]
[1756581207526,42.94782521,201.5,201.49,0.03]
[1756581209132,42.94782521,201.5,201.47,0.03]
[1756581209304,4.66737453,201.48,201.47,0.03]
[1756581210313,37.62114231,201.48,201.47,0.03]
[1756581211230,12.28114231,201.48,201.45,0.03]
[1756581211439,4.66737453,201.46,201.45,0.03]
[1756581212337,9.63113904,201.46,201.45,0.03]
[1756581214742,4.66737453,201.46,201.45,0.73]
[1756581217726,2.650198,201.52,201.45,0.73]
[1756581218029,4.66737453,201.48,201.45,0.73]
[1756581218229,4.66737453,201.49,201.46,4.181873]
[1756581218537,4.66737453,201.49,201.47,0.7]
[1756581219222,4.66737453,201.48,201.47,4.881873]
[1756581219424,4.66737453,201.48,201.47,4.181873]
[1756581220033,4.66737453,201.48,201.47,4.881873]
[1756581226040,26.0,201.52,201.47,4.881873]
[1756581226243,26.0,201.51,201.48,0.7]
[1756581226549,4.66737453,201.49,201.47,9.14536302]
[1756581226750,4.66737453,201.48,201.47,9.14536302]
[1756581226918,4.66737453,201.48,201.47,9.84536302]
[1756581227851,4.66737453,201.48,201.47,48.04536302]
[1756581228745,26.06,201.53,201.47,48.04536302]
[1756581229045,0.06,201.53,201.48,14.29559401]
[1756581229236,0.06,201.53,201.47,43.16349002]
[1756581229237,4.66737453,201.51,201.5,13.59559401]
[1756581229436,4.66737453,201.51,201.5,52.49559401]
[1756581229850,4.66737453,201.51,201.5,57.16296801]
[1756581230645,4.72737453,201.51,201.5,57.16296801]
[1756581232120,0.06,201.51,201.5,18.96296801]
[1756581232327,4.72737453,201.51,201.5,57.16296801]
[1756581233650,4.72737453,201.51,201.5,52.49559401]
[1756581238354,4.72737453,201.51,201.49,4.727375]
[1756581238537,4.72737453,201.51,201.5,38.2]
[1756581238538,0.06,201.51,201.5,38.2]
[1756581239754,4.72737453,201.51,201.5,38.2]
[1756581239980,4.72737453,201.51,201.47,79.53]
[1756581240180,4.66737453,201.48,201.47,79.53]
[1756581240361,4.66737453,201.48,201.47,0.03]
[1756581240559,4.66737453,201.48,201.47,38.23]
[1756581241181,0.06,201.51,201.48,13.59559401]
[1756581241485,0.06,201.51,201.49,38.9]
[1756581241681,4.66737453,201.5,201.49,38.9]
[1756581242267,4.66737453,201.5,201.49,0.7]
[1756581242465,4.66737453,201.5,201.49,38.9]
[1756581247385,4.72737453,201.5,201.49,38.9]
[1756581249300,3.0446345,201.5,201.49,38.9]
[1756581249798,3.0446345,201.5,201.49,43.86302546]
[1756581249989,3.0446345,201.5,201.49,57.45861947]
[1756581250378,0.06,201.5,201.49,57.45861947]
[1756581250580,0.06,201.5,201.49,60.50325347]
[1756581252203,0.06,201.5,201.49,22.30325347]
[1756581252403,0.06,201.5,201.49,60.50325347]
[1756581253404,0.06,201.5,201.49,140.00325347]
[1756581262714,0.06,201.5,201.49,101.80325347]
[1756581262917,0.06,201.5,201.49,139.98325347]
[1756581278832,0.06,201.5,201.49,139.28325347]
[1756581279208,3.0446345,201.5,201.49,96.14022801]
[1756581279407,3.0446345,201.5,201.49,134.32022801]
[1756581280416,3.0446345,201.5,201.49,139.28325347]
[1756581280930,3.0446345,201.5,201.49,134.32022801]
[1756581287428,3.0446345,201.5,201.49,82.544634]
[1756581287635,3.7046345,201.5,201.49,79.5]
[1756581287834,15.6431725,201.5,201.49,117.66]
[1756581289122,15.6431725,201.5,201.49,38.16]
[1756581289620,20.60595165,201.5,201.49,38.16]
[1756581290509,8.66741365,201.5,201.49,38.16]
[1756581290709,3.7046345,201.5,201.49,38.16]
[1756581291926,3.0446345,201.5,201.49,38.16]
[1756581301244,26.0,201.48,201.47,0.03]
[1756581301434,28.9846345,201.48,201.47,0.03]
[1756581301744,34.60790628,201.48,201.47,0.03]
[1756581302045,34.60790628,201.48,201.45,0.03]
[1756581302245,2.9846345,201.46,201.45,0.03]
[1756581302732,3.6446345,201.46,201.42,0.03]
[1756581302926,2.9846345,201.43,201.42,0.03]
[1756581303437,3.6446345,201.43,201.42,0.03]
[1756581303637,8.60913829,201.43,201.42,0.03]
[1756581304246,20.54767629,201.43,201.42,0.03]
[1756581304448,2.9846345,201.43,201.42,0.73]
[1756581304660,2.9846345,201.46,201.43,13.59559401]
[1756581304864,2.9846345,201.48,201.45,13.59559401]
[1756581305162,2.9846345,201.49,201.46,38.86]
[1756581305328,2.9846345,201.48,201.47,0.7]
[1756581306134,0.06,201.5,201.47,0.7]
[1756581306347,3.0446345,201.5,201.47,0.7]
[1756581307346,4.72284495,201.5,201.47,0.7]
[1756581307654,4.72284495,201.5,201.47,5.66350862]
[1756581307855,4.72284495,201.5,201.47,4.96350862]
[1756581308065,0.06,201.5,201.48,5.66321575]
[1756581308368,0.06,201.5,201.49,38.86]
[1756581309038,0.06,201.5,201.49,52.45559401]
[1756581309646,0.06,201.5,201.49,57.11843901]
[1756581310459,0.06,201.5,201.49,62.08146447]
[1756581312255,4.72284495,201.5,201.49,38.16]
[1756581312456,4.72284495,201.5,201.47,4.722845]
[1756581312634,4.66284495,201.48,201.45,5.66398569]
[1756581312830,0.72,201.5,201.46,38.86]
[1756581313069,0.72,201.5,201.46,52.455594]
[1756581313241,0.72,201.5,201.46,38.86]
[1756581313440,0.72,201.5,201.47,1.989901]
[1756581313640,0.06,201.5,201.48,38.16]
[1756581313843,0.06,201.5,201.47,1.989901]
[1756581313844,5.32284495,201.49,201.47,1.989901]
[1756581314051,5.32284495,201.48,201.47,40.149901]
[1756581314558,5.32284495,201.48,201.47,38.16]
[1756581315935,4.66284495,201.48,201.45,38.16]
[1756581316136,4.66284495,201.46,201.45,38.16]
[1756581317063,4.66284495,201.46,201.45,38.86]
[1756581317441,4.66284495,201.46,201.45,43.582845]
[1756581322066,4.66284495,201.46,201.45,42.882845]
[1756581323765,4.66284495,201.46,201.45,38.16]
[1756581324854,4.66284495,201.46,201.45,38.86]
[1756581325563,4.66284495,201.46,201.45,44.483037]
[1756581325872,4.66284495,201.49,201.46,18.55918718]
[1756581326071,0.06,201.5,201.47,38.86]
[1756581326286,4.72284495,201.5,201.48,13.59559401]
[1756581326572,4.72284495,201.5,201.49,38.86]
[1756581326959,0.06,201.5,201.49,52.45559401]
[1756581327369,0.06,201.5,201.49,67.37688401]
[1756581328765,0.06,201.5,201.49,72.33990947]
[1756581330273,0.06,201.5,201.49,67.37688401]
[1756581330459,4.72284495,201.5,201.49,14.92129]
[1756581330772,4.72284495,201.5,201.49,38.16]
[1756581331775,0.06,201.5,201.49,38.16]
[1756581331957,4.72284495,201.5,201.49,38.16]
[1756581332152,4.72284495,201.5,201.48,6.372144]
[1756581332153,4.72284495,201.5,201.48,5.682144]
[1756581332361,4.66284495,201.49,201.46,0.69]
[1756581332560,0.72,201.5,201.47,38.16]
[1756581332868,0.06,201.5,201.47,38.16]
[1756581333801,4.66284495,201.48,201.47,38.16]
[1756581337676,4.66284495,201.48,201.47,38.85]
[1756581338889,0.06,201.5,201.47,44.532579]
[1756581339080,0.06,201.5,201.48,14.28559401]
[1756581339396,0.06,201.5,201.49,51.75559401]
[1756581339573,0.06,201.5,201.49,54.43509901]
[1756581339769,0.06,201.5,201.49,59.39812447]
[1756581341772,0.06,201.5,201.49,21.23812447]
[1756581341971,4.72284495,201.5,201.49,40.149505]
[1756581342578,4.72284495,201.5,201.49,40.839505]
[1756581343099,0.06,201.5,201.49,59.39812447]
[1756581345422,0.06,201.5,201.49,138.89812447]
[1756581352117,0.06,201.5,201.49,100.73812447]
[1756581352292,0.06,201.5,201.49,138.87812447]
[1756581360532,1e-08,201.5,201.49,278.04096942]
[1756581360738,0.06,201.53,201.5,13.59559401]
[1756581361033,0.06,201.53,201.52,18.25843896]
[1756581361327,0.06,201.53,201.52,20.24735096]
[1756581361519,0.06,201.53,201.52,100.44735096]
[1756581362115,0.06,201.53,201.52,105.40963758]
[1756581362429,0.06,201.55,201.52,105.40963758]
[1756581362626,0.06,201.56,201.54,18.25843896]
[1756581362832,0.06,201.56,201.55,56.89459376]
[1756581363016,0.06,201.56,201.55,138.38291276]
[1756581363208,0.06,201.56,201.55,138.58675796]
[1756581363730,0.06,201.58,201.56,13.59559401]
[1756581363731,1e-08,201.58,201.56,13.59559401]